[Event "Austria Championship Blitz 2024"]
[Site "Innsbruck"]
[Date "2024.06.01"]
[Round "6.6"]
[White "Neuschmied, Siegfried"]
[Black "Blohberger, Felix"]
[Result "0-1"]
[ECO "C72"]
[WhiteElo "2234"]
[BlackElo "2506"]
[Annotator "TA"]
[PlyCount "50"]
[EventDate "2024.06.01"]
[EventType "swiss"]
[EventCountry "AUT"]
[SourceTitle "playchess.com"]
[Source "ChessBase"]
[SourceQuality "1"]
[TimeControl "180+2"]

{[%evp 10,50,40,27,20,-51,-50,-53,-63,-92,-57,-109,-101,-94,-19,-55,-67,-63,-51,-102,-86,-99,-106,-303,-189,-178,-179,-176,-178,-451,-177,-252,-255,-259,-260,-247,-262,-268,-231,-472,-343,-699,-704]} 1. e4 {[%emt 0:00:01]} e5 {[%emt 0:00:01]} 2. Nf3 {[%emt 0:00:01]} Nc6 {[%emt 0:00:01]} 3. Bb5 {[%emt 0:00:01]} a6 {[%emt 0:00:01]} 4. Ba4 {[%emt 0:00:01]} d6 {[%emt 0:00:01]} 5. O-O {[%emt 0:00:08]} Bd7 {[%emt 0:00:01]} 6. Re1 {[%emt 0:00:15]} (6. c3 $5) 6... g5 {[%emt 0:00:10][%cal Bg7g5,Bg5g4][%mdl 32] [#] Threatens to win with ...g4.} 7. Kh1 {[%emt 0:01:08]} (7. d4 $11) 7... g4 $15 {[%emt 0:00:02]} 8. Ng1 {[%emt 0:00:01]} h5 {[%emt 0:00:01] Black is slightly better.} 9. c3 {[%emt 0:00:03]} Bh6 {[%emt 0:00:08]} 10. d3 {[%emt 0:00:11]} (10. d4 $15) 10... Bxc1 {[%emt 0:00:05]} 11. Qxc1 {[%emt 0:00:01][%cal Od3d4]} Nge7 {[%emt 0:00:04]} ({Better is} 11... f5 $17 12. f4 Qf6 13. fxe5 Nxe5 14. Bxd7+ Kxd7) 12. Nd2 {[%emt 0:00:03]} Ng6 {[%emt 0:00:03]} 13. Nf1 {[%emt 0:00:10]} h4 {[%emt 0:00:05]} 14. Qe3 {[%emt 0:00:16]} (14. Ne3 $15) 14... Nf4 {[%emt 0:00:11]} 15. Ne2 {[%emt 0:00:10]} Qf6 {[%emt 0:00:24] [#] White must now prevent ...h3. Black is more active.} 16. Rad1 $2 {[%emt 0:00:07] This costs White the game.} (16. Bxc6 $17 Bxc6 17. Nxf4 exf4 18. Qe2) 16... O-O-O {[%emt 0:00:06]} 17. Bxc6 {[%emt 0:00:19]} Bxc6 {[%emt 0:00:03]} 18. Nxf4 {[%emt 0:00:04]} exf4 {[%emt 0:00:03]} 19. Qa7 {[%emt 0:00:01]} (19. Qe2) 19... f3 $2 {[%emt 0:00:13]} (19... h3 {Hoping for ...hxg2+.} 20. gxh3 Rxh3) 20. Nd2 {[%emt 0:00:25]} (20. Qe3 $142) 20... fxg2+ $19 {[%emt 0:00:17]} 21. Kxg2 {[%emt 0:00:01]} Rdg8 {[%emt 0:00:32]} 22. Qe3 {[%emt 0:00:03]} d5 {[%emt 0:00:05]} 23. Kh1 {[%emt 0:00:06]} dxe4 {[%emt 0:00:04] White is weak on the light squares} 24. Nxe4 {[%emt 0:00:02]} (24. dxe4 {was the only chance.} g3 25. f3) 24... Kb8 {[%emt 0:00:24]} 25. Rg1 $2 {[%emt 0:00:06]} (25. c4) 25... Qe6 {[%emt 0:00:07] Weighted Error Value: White=0.79/Black=0.47.  Loses game:     	White=1     	---        Mistake:       	White=7     	Black=2      Inaccurate:     	White=2     	Black=2      OK:         	White=5     	Black=8} 0-1

[Event "Austria Championship Blitz 2024"]
[Site "Innsbruck"]
[Date "2024.06.01"]
[Round "6.7"]
[White "Wohlfahrt, Herbert"]
[Black "Zanon, Magnus"]
[Result "1-0"]
[ECO "A85"]
[WhiteElo "2328"]
[BlackElo "2092"]
[Annotator "RC"]
[PlyCount "51"]
[EventDate "2024.06.01"]
[EventType "swiss"]
[EventCountry "AUT"]
[SourceTitle "playchess.com"]
[Source "ChessBase"]
[SourceQuality "1"]
[TimeControl "180+2"]

1. Nf3 {[%emt 0:00:00]} f5 {[%emt 0:00:01]} 2. d4 {[%emt 0:00:08]} Nf6 {[%emt 0:00:02]} 3. c4 {[%emt 0:00:00]} d6 {[%emt 0:00:01]} 4. Nc3 {[%emt 0:00:09]} g6 {[%emt 0:00:01]} 5. e3 {[%emt 0:00:03]} Bg7 {[%emt 0:00:01]} 6. b4 {[%emt 0:00:02]} O-O {[%emt 0:00:04]} 7. Qb3 {[%emt 0:00:01]} c6 {[%emt 0:00:05]} 8. Be2 {[%emt 0:00:05]} Qe8 {[%emt 0:00:01]} 9. b5 {[%emt 0:00:12]} h6 {[%emt 0:00:35]} 10. O-O {[%emt 0:00:09]} Kh7 {[%emt 0:00:05]} 11. a4 {[%emt 0:00:03]} e5 {[%emt 0:00:02]} 12. dxe5 {[%emt 0:00:10]} dxe5 {[%emt 0:00:01]} 13. Ba3 {[%emt 0:00:01]} Rf7 {[%emt 0:00:03]} 14. a5 {[%emt 0:00:03]} a6 {[%emt 0:00:18]} 15. Bd6 {[%emt 0:00:29]} axb5 {[%emt 0:00:59]} 16. Nxe5 {[%emt 0:00:08]} Ne4 {[%emt 0:00:11]} 17. Nxe4 {[%emt 0:00:11]} Bxe5 {[%emt 0:00:02]} 18. Bxe5 {[%emt 0:00:22]} Qxe5 {[%emt 0:00:02]} 19. Nd2 {[%emt 0:00:38]} Be6 {[%emt 0:00:02]} 20. Qc2 {[%emt 0:00:04]} bxc4 {[%emt 0:00:04]} 21. Nxc4 {[%emt 0:00:02]} Bxc4 {[%emt 0:00:07]} 22. Bxc4 {[%emt 0:00:02]} Rd7 {[%emt 0:00:04]} 23. h4 {[%emt 0:00:15]} Rxa5 {[%emt 0:00:03]} 24. Rxa5 {[%emt 0:00:01]} Qxa5 {[%emt 0:00:01]} 25. h5 {[%emt 0:00:01]} Qc5 {[%emt 0:00:17]} 26. Bg8+ {[%emt 0:00:02]} 1-0

[Event "Austria Championship Blitz 2024"]
[Site "Innsbruck"]
[Date "2024.06.01"]
[Round "6.8"]
[White "Teuschler, Barbara"]
[Black "Lerch, Johannes"]
[Result "0-1"]
[ECO "C41"]
[WhiteElo "2040"]
[BlackElo "2208"]
[Annotator "RC"]
[PlyCount "126"]
[EventDate "2024.06.01"]
[EventType "swiss"]
[EventCountry "AUT"]
[SourceTitle "playchess.com"]
[Source "ChessBase"]
[SourceQuality "1"]
[TimeControl "180+2"]

1. e4 {[%emt 0:00:00]} d6 {[%emt 0:00:00]} 2. d4 {[%emt 0:00:01]} Nf6 {[%emt 0:00:01]} 3. Nc3 {[%emt 0:00:02]} e5 {[%emt 0:00:01]} 4. Nf3 {[%emt 0:00:01]} Nbd7 {[%emt 0:00:00]} 5. Bc4 {[%emt 0:00:02]} Be7 {[%emt 0:00:01]} 6. O-O {[%emt 0:00:02]} O-O {[%emt 0:00:03]} 7. Re1 {[%emt 0:00:03]} a6 {[%emt 0:00:01]} 8. a4 {[%emt 0:00:01]} b6 {[%emt 0:00:01]} 9. b3 {[%emt 0:00:21]} Bb7 {[%emt 0:00:01]} 10. dxe5 {[%emt 0:00:16]} Nxe5 {[%emt 0:00:06]} 11. Nxe5 {[%emt 0:00:02]} dxe5 {[%emt 0:00:01]} 12. Bb2 {[%emt 0:00:04]} Bd6 {[%emt 0:00:08]} 13. Qf3 {[%emt 0:00:05]} Qe7 {[%emt 0:00:03]} 14. Rad1 {[%emt 0:00:01]} Rad8 {[%emt 0:00:08]} 15. h3 {[%emt 0:00:02]} h6 {[%emt 0:00:01]} 16. Nd5 {[%emt 0:00:09]} Nxd5 {[%emt 0:00:04]} 17. Bxd5 {[%emt 0:00:01]} c6 {[%emt 0:00:11]} 18. Bc4 b5 19. axb5 {[%emt 0:00:03]} axb5 {[%emt 0:00:02]} 20. Bf1 {[%emt 0:00:07]} Bc8 {[%emt 0:00:02]} 21. c4 {[%emt 0:00:03]} Bb4 {[%emt 0:00:17]} 22. Rxd8 {[%emt 0:00:05]} Rxd8 {[%emt 0:00:02]} 23. Rd1 {[%emt 0:00:01]} Rxd1 {[%emt 0:00:36]} 24. Qxd1 {[%emt 0:00:01]} bxc4 {[%emt 0:00:09]} 25. Bxc4 {[%emt 0:00:01]} Qd6 {[%emt 0:00:01]} 26. Qh5 {[%emt 0:00:13]} Be6 {[%emt 0:00:18]} 27. Bxe5 {[%emt 0:00:03]} Qd7 {[%emt 0:00:11]} 28. Qf3 {[%emt 0:00:32]} Bxc4 {[%emt 0:00:12]} 29. bxc4 {[%emt 0:00:01]} Qe6 {[%emt 0:00:01]} 30. Qg3 {[%emt 0:00:02]} Bf8 {[%emt 0:00:02]} 31. c5 {[%emt 0:00:17]} f6 {[%emt 0:00:02]} 32. Bd6 {[%emt 0:00:01]} Qxe4 {[%emt 0:00:05]} 33. Bxf8 {[%emt 0:00:02]} Kxf8 {[%emt 0:00:03]} 34. Qd6+ {[%emt 0:00:02]} Kg8 {[%emt 0:00:10]} 35. f3 {[%emt 0:00:36]} Qe1+ {[%emt 0:00:19]} 36. Kh2 {[%emt 0:00:00]} Qe5+ {[%emt 0:00:08]} 37. Qxe5 fxe5 {[%emt 0:00:01]} 38. Kg3 {[%emt 0:00:08]} Kf7 {[%emt 0:00:06]} 39. Kg4 {[%emt 0:00:04]} Ke6 {[%emt 0:00:09]} 40. h4 {[%emt 0:00:04]} Kd5 {[%emt 0:00:09]} 41. Kf5 {[%emt 0:00:02]} Kxc5 {[%emt 0:00:03]} 42. Kg6 {[%emt 0:00:04]} Kd4 {[%emt 0:00:08]} 43. Kxg7 {[%emt 0:00:01]} c5 {[%emt 0:00:05]} 44. g4 {[%emt 0:00:03]} c4 {[%emt 0:00:01]} 45. g5 {[%emt 0:00:00]} hxg5 {[%emt 0:00:05]} 46. h5 {[%emt 0:00:06]} c3 {[%emt 0:00:00]} 47. h6 {[%emt 0:00:01]} c2 {[%emt 0:00:01]} 48. h7 {[%emt 0:00:00]} c1=Q {[%emt 0:00:01]} 49. h8=Q {[%emt 0:00:01]} Qf4 {[%emt 0:00:06]} 50. Qd8+ {[%emt 0:00:05]} Ke3 {[%emt 0:00:01]} 51. Qd5 {[%emt 0:00:14]} Kf2 {[%emt 0:00:11]} 52. Kg6 {[%emt 0:00:03]} g4 {[%emt 0:00:02]} 53. fxg4 Qxg4+ {[%emt 0:00:01]} 54. Kf6 {[%emt 0:00:13]} Qf4+ {[%emt 0:00:02]} 55. Ke6 {[%emt 0:00:05]} e4 {[%emt 0:00:02]} 56. Qd4+ {[%emt 0:00:02]} Kf3 {[%emt 0:00:04]} 57. Qd1+ {[%emt 0:00:05]} Kg3 {[%emt 0:00:04]} 58. Qg1+ {[%emt 0:00:03]} Kh4 {[%emt 0:00:02]} 59. Qh1+ {[%emt 0:00:01]} Kg4 {[%emt 0:00:00]} 60. Qg2+ {[%emt 0:00:03]} Kh5 {[%emt 0:00:03]} 61. Qh1+ {[%emt 0:00:02]} Kg5 {[%emt 0:00:01]} 62. Qg2+ {[%emt 0:00:01]} Qg4+ {[%emt 0:00:01]} 63. Qxg4+ {[%emt 0:00:03]} Kxg4 {[%emt 0:00:00]} 0-1

[Event "Austria Championship Blitz 2024"]
[Site "Innsbruck"]
[Date "2024.06.01"]
[Round "6.9"]
[White "Kilgus, Georg"]
[Black "Keferboeck, Jewgeni"]
[Result "1-0"]
[ECO "B13"]
[WhiteElo "2362"]
[BlackElo "1957"]
[Annotator "RC"]
[PlyCount "65"]
[EventDate "2024.06.01"]
[EventType "swiss"]
[EventCountry "AUT"]
[SourceTitle "playchess.com"]
[Source "ChessBase"]
[SourceQuality "1"]
[TimeControl "180+2"]

1. d4 {[%emt 0:00:00]} Nf6 {[%emt 0:00:01]} 2. Nf3 {[%emt 0:00:01]} c5 {[%emt 0:00:05]} 3. e3 {[%emt 0:00:02]} d5 {[%emt 0:00:03]} 4. Be2 {[%emt 0:00:03]} Nc6 {[%emt 0:00:18]} 5. c3 {[%emt 0:00:01]} cxd4 {[%emt 0:00:11]} 6. exd4 {[%emt 0:00:02]} Bf5 {[%emt 0:00:06]} 7. O-O {[%emt 0:00:03]} e6 {[%emt 0:00:01]} 8. Bf4 {[%emt 0:00:01]} Bd6 {[%emt 0:00:01]} 9. Bxd6 {[%emt 0:00:01]} Qxd6 {[%emt 0:00:01]} 10. Nbd2 {[%emt 0:00:01]} O-O {[%emt 0:00:07]} 11. Re1 {[%emt 0:00:01]} Rfe8 {[%emt 0:00:07]} 12. Nh4 {[%emt 0:00:07]} Bg6 {[%emt 0:00:06]} 13. Nxg6 hxg6 {[%emt 0:00:01]} 14. g3 {[%emt 0:00:06]} e5 {[%emt 0:00:06]} 15. dxe5 {[%emt 0:00:03]} Nxe5 {[%emt 0:00:03]} 16. Nb3 {[%emt 0:00:31]} Rad8 {[%emt 0:00:10]} 17. Nd4 {[%emt 0:00:01]} a6 {[%emt 0:00:12]} 18. a4 {[%emt 0:00:06]} Nc4 {[%emt 0:00:40]} 19. Qc2 {[%emt 0:00:01]} Re7 {[%emt 0:00:21]} 20. Bf3 {[%emt 0:00:04]} Rde8 {[%emt 0:00:06]} 21. Rxe7 {[%emt 0:00:01]} Rxe7 {[%emt 0:00:01]} 22. b3 {[%emt 0:00:09]} Ne5 {[%emt 0:00:01]} 23. Bg2 {[%emt 0:00:01]} Nc6 {[%emt 0:00:04]} 24. Nxc6 {[%emt 0:00:16]} bxc6 {[%emt 0:00:03]} 25. b4 {[%emt 0:00:03]} Qe5 {[%emt 0:00:29]} 26. Qd3 {[%emt 0:00:10]} Ne4 {[%emt 0:00:12]} 27. Bxe4 {[%emt 0:00:08]} dxe4 {[%emt 0:00:01]} 28. Qe3 {[%emt 0:00:46]} Rd7 {[%emt 0:00:09]} 29. Re1 {[%emt 0:00:01]} f5 {[%emt 0:00:01]} 30. f3 {[%emt 0:00:02]} Rd3 {[%emt 0:00:04]} 31. Qxd3 {[%emt 0:00:01]} Qxg3+ {[%emt 0:00:07]} 32. hxg3 {[%emt 0:00:02]} exd3 {[%emt 0:00:01]} 33. Rd1 {[%emt 0:00:00]} 1-0

[Event "Austria Championship Blitz 2024"]
[Site "Innsbruck"]
[Date "2024.06.01"]
[Round "6.10"]
[White "Gschiel, Alexander"]
[Black "Kranzl, Peter"]
[Result "1-0"]
[ECO "A58"]
[WhiteElo "2355"]
[BlackElo "2157"]
[Annotator "RC"]
[PlyCount "159"]
[EventDate "2024.06.01"]
[EventType "swiss"]
[EventCountry "AUT"]
[SourceTitle "playchess.com"]
[Source "ChessBase"]
[SourceQuality "1"]
[TimeControl "180+2"]

1. d4 {[%emt 0:00:02]} Nf6 {[%emt 0:00:01]} 2. c4 {[%emt 0:00:02]} c5 {[%emt 0:00:01]} 3. d5 {[%emt 0:00:01]} b5 {[%emt 0:00:02]} 4. cxb5 {[%emt 0:00:01]} a6 {[%emt 0:00:01]} 5. bxa6 {[%emt 0:00:01]} g6 {[%emt 0:00:02]} 6. Nc3 {[%emt 0:00:01]} Bg7 {[%emt 0:00:01]} 7. e4 {[%emt 0:00:01]} O-O {[%emt 0:00:02]} 8. Nf3 {[%emt 0:00:03]} d6 {[%emt 0:00:04]} 9. Be2 {[%emt 0:00:04]} Qa5 {[%emt 0:00:02]} 10. O-O {[%emt 0:00:03]} Bxa6 {[%emt 0:00:02]} 11. a4 {[%emt 0:00:05]} Nfd7 {[%emt 0:00:20]} 12. Nd2 {[%emt 0:00:13]} Ne5 {[%emt 0:00:13]} 13. f4 {[%emt 0:00:13]} Nd3 {[%emt 0:00:14]} 14. Bxd3 {[%emt 0:00:17]} Bxd3 {[%emt 0:00:02]} 15. Nb3 {[%emt 0:00:02]} Qa6 {[%emt 0:00:16]} 16. Rf3 {[%emt 0:00:08]} Bxc3 {[%emt 0:00:13]} 17. Qxd3 {[%emt 0:00:17]} Qxd3 {[%emt 0:00:10]} 18. Rxd3 {[%emt 0:00:01]} Bf6 {[%emt 0:00:08]} 19. Nd2 {[%emt 0:00:06]} Na6 {[%emt 0:00:06]} 20. Nc4 {[%emt 0:00:08]} Nb4 {[%emt 0:00:02]} 21. Rd1 {[%emt 0:00:10]} Bd4+ {[%emt 0:00:10]} 22. Kf1 {[%emt 0:00:16]} Rfb8 {[%emt 0:00:09]} 23. a5 {[%emt 0:00:11]} f5 {[%emt 0:00:16]} 24. e5 {[%emt 0:00:07]} dxe5 {[%emt 0:00:08]} 25. fxe5 {[%emt 0:00:01]} Nxd5 {[%emt 0:00:01]} 26. Ra3 {[%emt 0:00:18]} Kf7 {[%emt 0:00:03]} 27. Ke2 {[%emt 0:00:08]} Ke6 {[%emt 0:00:04]} 28. a6 {[%emt 0:00:17]} Rb4 {[%emt 0:00:15]} 29. Kd3 {[%emt 0:00:20]} Nc7 {[%emt 0:00:10]} 30. Bd2 {[%emt 0:00:04]} Rb5 {[%emt 0:00:05]} 31. Rda1 {[%emt 0:00:08]} Kd5 {[%emt 0:00:03]} 32. Be3 {[%emt 0:00:10]} Bxe3 {[%emt 0:00:08]} 33. Nxe3+ {[%emt 0:00:01]} Kxe5 {[%emt 0:00:01]} 34. Nc4+ {[%emt 0:00:01]} Kd5 {[%emt 0:00:02]} 35. Re1 {[%emt 0:00:06]} e6 {[%emt 0:00:04]} 36. Re5+ {[%emt 0:00:03]} Kc6 {[%emt 0:00:02]} 37. Re1 {[%emt 0:00:02]} Kd5 {[%emt 0:00:05]} 38. Re5+ {[%emt 0:00:01]} Kc6 {[%emt 0:00:01]} 39. Re1 {[%emt 0:00:01]} Ra7 {[%emt 0:00:01]} 40. Kc3 {[%emt 0:00:04]} Nd5+ {[%emt 0:00:02]} 41. Kd3 {[%emt 0:00:01]} Nc7 {[%emt 0:00:03]} 42. Kc3 {[%emt 0:00:03]} Kd7 {[%emt 0:00:02]} 43. Kd3 {[%emt 0:00:02]} Kc6 {[%emt 0:00:06]} 44. Kc3 {[%emt 0:00:00]} Rb4 {[%emt 0:00:07]} 45. Kd3 {[%emt 0:00:03]} Kd7 {[%emt 0:00:01]} 46. Ne5+ {[%emt 0:00:01]} Kd6 {[%emt 0:00:03]} 47. Nc4+ {[%emt 0:00:00]} Kd5 {[%emt 0:00:02]} 48. Re5+ {[%emt 0:00:02]} Kc6 {[%emt 0:00:00]} 49. Re1 {[%emt 0:00:03]} Kb5 {[%emt 0:00:05]} 50. Nd6+ {[%emt 0:00:02]} Kc6 {[%emt 0:00:01]} 51. Nc4 {[%emt 0:00:04]} Ra8 {[%emt 0:00:04]} 52. Ra5 {[%emt 0:00:01]} Rb3+ {[%emt 0:00:05]} 53. Kc2 {[%emt 0:00:01]} Rb5 {[%emt 0:00:04]} 54. Ra3 {[%emt 0:00:06]} Kd7 {[%emt 0:00:04]} 55. Ne5+ {[%emt 0:00:01]} Ke7 {[%emt 0:00:03]} 56. Kc3 {[%emt 0:00:03]} Rxa6 {[%emt 0:00:03]} 57. Rxa6 {[%emt 0:00:01]} Nxa6 {[%emt 0:00:01]} 58. Ra1 {[%emt 0:00:01]} Nb4 {[%emt 0:00:02]} 59. Ra7+ {[%emt 0:00:01]} Kf6 {[%emt 0:00:01]} 60. Nd7+ {[%emt 0:00:04]} Kg5 {[%emt 0:00:01]} 61. Nf8 {[%emt 0:00:02]} e5 {[%emt 0:00:03]} 62. Nxh7+ {[%emt 0:00:01]} Kf4 {[%emt 0:00:01]} 63. Nf6 {[%emt 0:00:04]} Rb8 {[%emt 0:00:03]} 64. Rc7 {[%emt 0:00:01]} Kg5 {[%emt 0:00:03]} 65. Rf7 {[%emt 0:00:02]} e4 {[%emt 0:00:03]} 66. Nd7 {[%emt 0:00:03]} Rc8 {[%emt 0:00:06]} 67. g3 {[%emt 0:00:01]} Nd5+ {[%emt 0:00:02]} 68. Kc4 {[%emt 0:00:01]} Ne3+ {[%emt 0:00:01]} 69. Kc3 {[%emt 0:00:00]} Nf1 {[%emt 0:00:01]} 70. Ne5 {[%emt 0:00:02]} Nxh2 {[%emt 0:00:04]} 71. Re7 {[%emt 0:00:02]} Nf1 {[%emt 0:00:01]} 72. Re6 {[%emt 0:00:01]} Nxg3 {[%emt 0:00:03]} 73. Rxg6+ {[%emt 0:00:01]} Kf4 {[%emt 0:00:01]} 74. Nc4 {[%emt 0:00:06]} Rd8 {[%emt 0:00:03]} 75. Rc6 {[%emt 0:00:03]} Rd3+ {[%emt 0:00:01]} 76. Kc2 {[%emt 0:00:01]} Ne2 {[%emt 0:00:02]} 77. Rxc5 {[%emt 0:00:01]} Nd4+ {[%emt 0:00:01]} 78. Kc1 {[%emt 0:00:08]} e3 {[%emt 0:00:02]} 79. Ne5 {[%emt 0:00:00]} Rd2 {[%emt 0:00:09]} 80. Ng6+ {[%emt 0:00:04]} 1-0

[Event "Austria Championship Blitz 2024"]
[Site "Innsbruck"]
[Date "2024.06.01"]
[Round "6.11"]
[White "Hatzl, Johannes"]
[Black "Schnegg, Daniel"]
[Result "0-1"]
[ECO "B06"]
[WhiteElo "2074"]
[BlackElo "2115"]
[Annotator "RC"]
[PlyCount "80"]
[EventDate "2024.06.01"]
[EventType "swiss"]
[EventCountry "AUT"]
[SourceTitle "playchess.com"]
[Source "ChessBase"]
[SourceQuality "1"]
[TimeControl "180+2"]

1. d4 {[%emt 0:00:01]} d6 {[%emt 0:00:01]} 2. e4 {[%emt 0:00:03]} g6 {[%emt 0:00:01]} 3. Nc3 {[%emt 0:00:03]} Bg7 {[%emt 0:00:02]} 4. Bf4 {[%emt 0:00:02]} Nd7 {[%emt 0:00:03]} 5. Nf3 {[%emt 0:00:02]} e6 {[%emt 0:00:02]} 6. Qd2 {[%emt 0:00:06]} b6 {[%emt 0:00:06]} 7. Bd3 {[%emt 0:00:18]} Bb7 {[%emt 0:00:01]} 8. O-O {[%emt 0:00:09]} Qe7 {[%emt 0:00:06]} 9. Bg5 {[%emt 0:00:08]} Bf6 {[%emt 0:00:04]} 10. Rfe1 {[%emt 0:00:18]} h6 {[%emt 0:00:05]} 11. Bxf6 {[%emt 0:00:03]} Ngxf6 {[%emt 0:00:07]} 12. a4 {[%emt 0:00:09]} e5 {[%emt 0:00:14]} 13. Bb5 {[%emt 0:00:15]} a6 {[%emt 0:00:35]} 14. Bf1 {[%emt 0:00:13]} g5 {[%emt 0:00:30]} 15. h3 {[%emt 0:00:50]} Qe6 {[%emt 0:00:14]} 16. d5 {[%emt 0:00:04]} Qe7 {[%emt 0:00:02]} 17. b4 {[%emt 0:00:05]} Nh5 {[%emt 0:00:01]} 18. Ne2 {[%emt 0:00:05]} Nf4 {[%emt 0:00:05]} 19. Nxf4 {[%emt 0:00:03]} gxf4 {[%emt 0:00:12]} 20. c4 {[%emt 0:00:04]} Rg8 {[%emt 0:00:04]} 21. Kh1 {[%emt 0:00:03]} a5 {[%emt 0:00:03]} 22. b5 {[%emt 0:00:17]} Nc5 {[%emt 0:00:02]} 23. Ra3 {[%emt 0:00:06]} O-O-O {[%emt 0:00:06]} 24. Nh2 {[%emt 0:00:08]} Kb8 {[%emt 0:00:02]} 25. Be2 {[%emt 0:00:03]} Nxe4 {[%emt 0:00:04]} 26. Qc2 {[%emt 0:00:10]} Nxf2+ {[%emt 0:00:04]} 27. Kg1 {[%emt 0:00:00]} Qh4 {[%emt 0:00:06]} 28. Rf1 {[%emt 0:00:06]} Nxh3+ {[%emt 0:00:02]} 29. Kh1 {[%emt 0:00:01]} Ng5 {[%emt 0:00:08]} 30. Bf3 {[%emt 0:00:02]} Bc8 {[%emt 0:00:05]} 31. c5 {[%emt 0:00:02]} dxc5 {[%emt 0:00:05]} 32. d6 {[%emt 0:00:02]} Rxd6 {[%emt 0:00:02]} 33. Bc6 {[%emt 0:00:02]} Rgd8 {[%emt 0:00:15]} 34. Qe2 {[%emt 0:00:01]} Rd2 {[%emt 0:00:05]} 35. Qxe5 {[%emt 0:00:01]} Rf2 {[%emt 0:00:03]} 36. Rg1 {[%emt 0:00:02]} Rfd2 {[%emt 0:00:08]} 37. Rc3 {[%emt 0:00:02]} Rd1 {[%emt 0:00:02]} 38. Rc1 {[%emt 0:00:02]} Rxc1 {[%emt 0:00:06]} 39. Rxc1 {[%emt 0:00:01]} Qf2 {[%emt 0:00:00]} 40. Be4 {[%emt 0:00:04]} Qe3 {[%emt 0:00:03]} 0-1

[Event "Austria Championship Blitz 2024"]
[Site "Innsbruck"]
[Date "2024.06.01"]
[Round "6.12"]
[White "Erhard, Jakob"]
[Black "Blaas, Hansjoerg"]
[Result "0-1"]
[ECO "B25"]
[WhiteElo "2057"]
[BlackElo "2222"]
[Annotator "RC"]
[PlyCount "50"]
[EventDate "2024.06.01"]
[EventType "swiss"]
[EventCountry "AUT"]
[SourceTitle "playchess.com"]
[Source "ChessBase"]
[SourceQuality "1"]
[TimeControl "180+2"]

1. e4 {[%emt 0:00:01]} c5 {[%emt 0:00:00]} 2. Nc3 {[%emt 0:00:01]} Nc6 {[%emt 0:00:01]} 3. g3 {[%emt 0:00:01]} g6 {[%emt 0:00:00]} 4. Bg2 {[%emt 0:03:07]} Bg7 5. d3 {[%emt 0:00:00]} Nf6 {[%emt 0:00:02]} 6. f4 {[%emt 0:00:00]} d6 {[%emt 0:00:02]} 7. Nf3 {[%emt 0:00:00]} O-O {[%emt 0:00:06]} 8. h3 {[%emt 0:00:00]} e6 {[%emt 0:00:02]} 9. O-O {[%emt 0:00:00]} d5 {[%emt 0:00:06]} 10. e5 {[%emt 0:00:00]} Nd7 {[%emt 0:00:07]} 11. Bd2 {[%emt 0:00:00]} a6 {[%emt 0:00:08]} 12. a4 {[%emt 0:00:00]} f6 {[%emt 0:00:06]} 13. exf6 {[%emt 0:00:00]} Nxf6 {[%emt 0:00:01]} 14. Re1 {[%emt 0:00:00]} Nh5 {[%emt 0:00:04]} 15. Kh2 {[%emt 0:00:00]} Qd6 {[%emt 0:00:07]} 16. Ne2 {[%emt 0:00:00]} e5 {[%emt 0:00:09]} 17. fxe5 {[%emt 0:00:00]} Nxe5 {[%emt 0:00:01]} 18. Nxe5 {[%emt 0:00:00]} Bxe5 {[%emt 0:00:05]} 19. Rf1 {[%emt 0:00:00]} Bxg3+ {[%emt 0:00:18]} 20. Kh1 {[%emt 0:00:00]} Be6 {[%emt 0:00:20]} 21. Rxf8+ {[%emt 0:00:00]} Rxf8 {[%emt 0:00:01]} 22. c3 {[%emt 0:00:00]} Qd7 {[%emt 0:00:09]} 23. Ng1 {[%emt 0:00:00]} Bf2 {[%emt 0:00:08]} 24. Bh6 {[%emt 0:00:00]} Ng3+ {[%emt 0:00:13]} 25. Kh2 {[%emt 0:00:00]} Qc7 {[%emt 0:00:05]} 0-1

[Event "Austria Championship Blitz 2024"]
[Site "Innsbruck"]
[Date "2024.06.01"]
[Round "6.13"]
[White "Casagrande, Harald"]
[Black "Leonov, Leonid"]
[Result "0-1"]
[ECO "D03"]
[WhiteElo "2290"]
[BlackElo "1739"]
[Annotator "RC"]
[PlyCount "34"]
[EventDate "2024.06.01"]
[EventType "swiss"]
[EventCountry "AUT"]
[SourceTitle "playchess.com"]
[Source "ChessBase"]
[SourceQuality "1"]
[TimeControl "180+2"]

1. d4 {[%emt 0:00:02]} Nf6 {[%emt 0:00:00]} 2. Bg5 {[%emt 0:00:01]} d5 {[%emt 0:00:01]} 3. Nf3 {[%emt 0:00:02]} Bg4 {[%emt 0:00:12]} 4. Ne5 {[%emt 0:00:20]} Bh5 {[%emt 0:00:01]} 5. c4 {[%emt 0:00:01]} dxc4 {[%emt 0:00:05]} 6. Nc3 {[%emt 0:00:12]} e6 {[%emt 0:00:19]} 7. Nxc4 {[%emt 0:00:19]} c5 {[%emt 0:00:01]} 8. Qa4+ {[%emt 0:00:28]} Qd7 {[%emt 0:00:05]} 9. Bxf6 {[%emt 0:00:30]} gxf6 {[%emt 0:00:07]} 10. Nb5 {[%emt 0:00:01]} Nc6 {[%emt 0:00:20]} 11. dxc5 {[%emt 0:00:08]} Bxc5 {[%emt 0:02:13]} 12. Rd1 Qe7 {[%emt 0:00:00]} 13. a3 {[%emt 0:00:39]} O-O {[%emt 0:00:00]} 14. Qc2 {[%emt 0:00:30]} Rfd8 {[%emt 0:00:00]} 15. Rxd8+ {[%emt 0:00:02]} Rxd8 {[%emt 0:00:00]} 16. Nc3 {[%emt 0:00:04]} Nd4 {[%emt 0:00:00]} 17. Qe4 {[%emt 0:00:04]} Bg6 {[%emt 0:00:12]} 0-1